Cogmind - Beta 16.1 @@@ ROGUE MODE // 2026.02.23 @ 22:01:32 Player: DS-RVS Result: Destroyed by G-34 Mercenary with Small Laser Performance ------------- Evolutions (0) 0 Regions Visited (1) 200 Robots Destroyed (15) 75 Value Destroyed (342) 342 Prototype IDs (0) 0 Alien Tech Used (0) 0 Bonus (0) 0 TOTAL SCORE: 617 Bonus ------- None Cogmind --------- Core Integrity 0/250 Matter 300/300 Energy 98/100 System Corruption 0% Temperature Cool (7) Movement Walking (120) Location -10/Materials Parts ------- > --- POWER (1) -------- (None) > --- PROPULSION (2) --- Aluminum Leg > --- UTILITY (2) ------ Small Storage Unit > --- WEAPON (2) ------- (None) > --- INVENTORY (8) ---- Light Ion Engine Light Ion Engine Heat Sink Heat Sink Peak State ------------ > --- POWER ------------ Light Nuclear Core > --- PROPULSION ------- Aluminum Leg Wheel > --- UTILITY ---------- Heat Sink Small Storage Unit > --- WEAPON ----------- Small Laser Light Assault Rifle > --- INVENTORY -------- Light Ion Engine Light Ion Engine Aluminum Leg Heat Sink [Rating: 9] Favorites ----------- Power Light Ion Engine Engine Light Ion Engine Power Core Light Nuclear Core Propulsion Light Treads Treads Light Treads Leg Aluminum Leg Wheel Wheel Utility Small Storage Unit Device Heat Sink Storage Small Storage Unit Weapon Medium Laser Energy Gun Medium Laser Ballistic Gun Light Assault Rifle Build | -11 -10 ------- Run | Yrd Mat Slots Evolved . | . . Power . | . . Propulsion . | . . Utility . | . . Weapon . | . . Parts Attached 18 | 7 11 Power 4 | 1 3 Engine 3 | 1 2 Core 1 | . 1 Reactor . | . . Propulsion 6 | 2 4 Treads 2 | 2 . Leg 3 | . 3 Wheel 1 | . 1 Hover . | . . Flight . | . . Utility 4 | 2 2 Device 3 | 1 2 Storage 1 | 1 . Processor . | . . Hackware . | . . Protection . | . . Artifact . | . . Weapon 4 | 2 2 Energy Gun 3 | 2 1 Energy Cannon . | . . Ballistic Gun 1 | . 1 Ballistic Cannon . | . . Launcher . | . . Special Weapon . | . . Impact Weapon . | . . Slashing Weapon . | . . Piercing Weapon . | . . Special Melee Weapon . | . . Unidentified Prototypes . | . . Parts Lost 11 | . 11 Power 2 | . 2 Propulsion 4 | . 4 Utility 1 | . 1 Weapon 4 | . 4 Highest Loss Streak 4 | . 4 To Critical Strikes . | . . Average Backups 3 | 2 3 Power 1 | . 1 Propulsion . | . . Utility . | . . Weapon . | . . Tool/Special . | . . Unused Backups . | . . Power . | . . Propulsion . | . . Utility . | . . Weapon . | . . Tool/Special . | . . Average Slot Usage (%) 86 | . 86 Engine 9 | . 9 Core 4 | . 4 Treads 16 | . 16 Leg 7 | . 7 Device 10 | . 10 Storage 14 | . 14 Energy Gun 14 | . 14 Ballistic Gun 7 | . 7 Peak Build Rating 9 | 7 9 Average Rating 6 | 5 6 On Entrance 3 | . 7 Avg Prop Armor Cover (%) 6 | . 6 Naked Turns . | . . Heaviest Build 13 | 13 13 Greatest Support 40 | 40 40 Greatest Overweight (x) 1 | . 1 Average Overweight (x) . | . . Largest Inventory Capacity 8 | 8 8 Average Capacity 7 | 7 8 Most Carried 5 | 3 5 Average Carried 3 | 2 3 Final Capacity 8 | 8 8 Final Carried 4 | 3 4 Class Distribution -------------------- 79% | Mutant 20% | Scavenger-Mutant Dominant Class ---------------- Mutant | -10/Materials Resources | -11 -10 ----------- Run | Yrd Mat Matter Collected 393 | 246 147 Remotely . | . . Salvage Created 455 | 47 408 Parts 33 | 4 29 Haulers Intercepted . | . . Recyclers Shooed 3 | 1 2 Parts Field Recycled . | . . Retrieved Matter . | . . Parts Self-Destructed . | . . Prevented . | . . Parts Restored . | . . Kills | -11 -10 ------- Run | Yrd Mat Combat Hostiles Destroyed 10 | . 10 Guns 10 | . 10 Classes Destroyed 6 | 1 5 Builder 1 | . 1 Tunneler 2 | 2 . Operator 1 | . 1 Watcher 1 | . 1 Swarmer 3 | . 3 Grunt 7 | . 7 Best Kill Streak 3 | 1 3 Combat Bots Only 3 | . 3 Max Kills in Single Turn 2 | 1 2 Gunslinging . | . . Exploded . | . . Melee . | . . Uniques/NPCs Destroyed . | . . Combat | -11 -10 -------- Run | Yrd Mat Hostile Shots Fired 133 | . 133 Missed 35 | . 35 Hits 98 | . 98 Projectile 98 | . 98 Damage Taken 1259 | . 1259 Core 250 | . 250 Absorbed by Shields . | . . Core Remaining (%) 100 | 100 . Volleys Fired 68 | 6 62 Largest 2 | 2 2 Hottest 90 | 90 90 Shots Fired 133 | 12 121 Gun 133 | 12 121 Cannon . | . . Launcher . | . . Special . | . . Kinetic 46 | . 46 Thermal 67 | 6 61 Explosive . | . . Electromagnetic 20 | 6 14 Robot Hit Streak 11 | 3 11 Robot Miss Streak 4 | 2 4 Penetration Max . | . . Secondary Targets 1 | . 1 Max Gunslinging Chain 1 | . 1 Shots Hit Robots 80 | 6 74 Core Hits 33 | 2 31 Critical Kills . | . . Critical Parts Destroyed . | . . Critical Strikes 1 | . 1 Burn 1 | . 1 Melee Attacks . | . . Impact . | . . Slashing . | . . Piercing . | . . Sneak Attacks . | . . Combat Hostiles . | . . Follow-up Attacks . | . . Damage Inflicted 953 | 76 877 Guns 878 | 76 802 Cannons . | . . Explosions 21 | . 21 Melee . | . . Ramming 54 | . 54 Kinetic 255 | . 255 Thermal 489 | 37 452 Explosive . | . . Electromagnetic 155 | 39 116 Impact . | . . Slashing . | . . Piercing . | . . Highest Corruption . | . . Average Corruption . | . . Corruption Purged . | . . Corruption Blocked . | . . Overload Shots . | . . Overflow Damage 4 | . 4 Projectiles . | . . Explosions 4 | . 4 Melee . | . . Knockbacks 1 | . 1 Impact 1 | . 1 Kinetic . | . . Secondary . | . . Self-Inflicted Damage 39 | . 39 Shots 1 | . 1 Rammed . | . . Targets Rammed 22 | . 22 Kicked 22 | . 22 Crushed . | . . Highest Temperature 284 | 120 284 Average Temperature 58 | 48 60 Received Heat Transfer 669 | . 669 Siege Activations . | . . Martial Activations . | . . Shielding Activations . | . . Robots Disrupted . | . . Combat Hostiles . | . . Robots Corrupted . | . . Combat Hostiles . | . . Parts Fried . | . . Impact Corruptions . | . . Robots Melted . | . . Combat Hostiles . | . . Parts Melted 2 | . 2 Heat Transferred 1387 | 111 1276 Parts Sabotaged . | . . Parts Stolen . | . . Parts Stripped . | . . Power Chain Reactions 1 | . 1 Alert | -11 -10 ------- Run | Yrd Mat Maximum Alert Level . | . . Low Security (%) 100 | 100 100 Level 1 . | . . Level 2 . | . . Level 3 . | . . Level 4 . | . . Level 5 . | . . High Security . | . . Max Security . | . . Peak Influence 126 | 5 126 Initial . | . . Average 52 | . 66 Influence Increases 361 | 10 351 Destroy 0b10 Robot/C 200 | . 200 Destroy 0b10 Robot/NC 25 | 10 15 Destroy Leader 42 | . 42 Select Force Hacks 30 | . 30 Disable Machine 15 | . 15 Destroy Structure 4 | . 4 Lose Combat Pursuer 45 | . 45 Influence Decreases 346 | 10 336 Time Decay 236 | 10 226 Lost Part 110 | . 110 Squads Dispatched 3 | . 3 Investigation 1 | . 1 Extermination . | . . Reinforcement 2 | . 2 Assault . | . . Garrison . | . . Intercept . | . . Searches Triggered . | . . Construction Impeded . | . . Haulers Reinforced . | . . Active Scanning Responses . | . . Cargo Convoy Interrupts . | . . Stealth | -11 -10 --------- Run | Yrd Mat Distress Signals 3 | . 3 Communications Jammed . | . . Distress Signals . | . . Times Spotted 21 | . 21 Peak Tracking Total 6 | . 6 Tactical Retreats 3 | . 3 Traps | -11 -10 ------- Run | Yrd Mat Traps Triggered . | . . Indirectly . | . . Trap Hack Attempts . | . . Triggered . | . . Disarmed . | . . Reprogrammed . | . . Reused . | . . Traps Extracted . | . . Installed . | . . Triggered . | . . Machines | -11 -10 ---------- Run | Yrd Mat Machines Disabled 1 | . 1 Max in Single Turn 1 | . 1 Machines Repaired . | . . Machines Dismantled . | . . Machines Sabotaged . | . . Overloaded Fab Kills . | . . Hacking | -11 -10 --------- Run | Yrd Mat Machines Accessed 2 | . 2 Terminals 1 | . 1 Fabricators . | . . Repair Stations . | . . Recycling Units 1 | . 1 Scanalyzers . | . . Garrison Access . | . . Total Hacks 8 | . 8 Successful 5 | . 5 Failed 3 | . 3 Catastrophic . | . . Database Lockouts . | . . Manual 7 | . 7 Terminals 5 | . 5 Fabricators . | . . Repair Stations . | . . Recycling Units 3 | . 3 Scanalyzers . | . . Garrison Access . | . . Terminal Hacks 1 | . 1 Locate Traps 1 | . 1 Fabricator Hacks . | . . Repair Station Hacks . | . . Recycling Unit Hacks 1 | . 1 Report Inventory 1 | . 1 Scanalyzer . | . . Garrison Access Hacks . | . . Unauthorized Hacks 3 | . 3 Terminals 2 | . 2 Botnet 1 | . 1 Skim 1 | . 1 Fabricators . | . . Repair Stations . | . . Recycling Units 1 | . 1 Tunnel 1 | . 1 Scanalyzers . | . . Garrison Access . | . . Data Cores Recovered . | . . Used . | . . Hacking Detections 1 | . 1 Full Trace Events . | . . Feedback Events . | . . Feedback Blocked . | . . Robot Schematics Acquired . | . . Robots Built . | . . Authchips . | . . Time . | . . Total Robot Build Rating . | . . Part Schematics Acquired . | . . Parts Built . | . . Authchips . | . . Time . | . . Total Part Build Rating . | . . Part Studies Acquired . | . . Parts Repaired . | . . Time . | . . Parts Recycled . | . . Recycled Matter . | . . Retrieved Matter . | . . Retrieved Components . | . . Parts Scanalyzed . | . . Part Schematics Acquired . | . . Parts Damaged . | . . Bothacking | -11 -10 ------------ Run | Yrd Mat Used RIF Installer . | . . Robots Hacked . | . . Non-combat . | . . Combat . | . . Robot Hacks Applied . | . . Relay Couplers Released . | . . Fabnet Peak Effective % . | . . Robots Rewired . | . . Allies Hacked . | . . Hacks Repelled . | . . Allies | -11 -10 -------- Run | Yrd Mat Total Allies . | . . Largest Group . | . . Highest-Rated Group . | . . Highest-Rated Ally . | . . Total Orders . | . . Ally Attacks . | . . Total Damage . | . . Kills . | . . Allies Corrupted . | . . Allies Melted . | . . Intel | -11 -10 ------- Run | Yrd Mat Active Infowar (turns) 81 | 5 76 Seismic 81 | 5 76 Robot Analysis Total . | . . Derelict Logs Recovered . | . . Drone Launches . | . . Drone Recoveries . | . . Exploration | -11 -10 ------------- Run | Yrd Mat Turns Passed 692 | 143 549 Spaces Moved 292 | 70 222 Core 3 | 3 . Treads 181 | 67 114 Legs 101 | . 101 Wheels 7 | . 7 Hover . | . . Flight . | . . Fastest Speed 50 | 50 95 Average Speed 146 | 155 144 Slowest Speed 190 | 160 190 Overloaded Moves . | . . Propulsion Burnouts . | . . Robots Hopped . | . . Potential Cave-ins . | . . Cave-ins Triggered . | . . Exploration Rate (%) 22 | 4 41 Regions Visited 1 Branch Regions . Pre-discovered Areas 1 | . 1 Known Exits Taken . | . . Unknown Exits Taken 1 | 1 . Scrap Searched . | . . Spaces Dug . | . . Terrain Destroyed 3 | . 3 Melee . | . . Projectile . | . . AOE 3 | . 3 Terrain Rammed . | . . Walls Destroyed . | . . Machines Disabled . | . . Actions | -11 -10 --------- Run | Yrd Mat Total 421 | 89 332 Wait 17 | 4 13 Move 291 | 69 222 Hop . | . . Pick Up 4 | 3 1 Fast Attach 10 | 7 3 Attach 4 | . 4 Detach 1 | . 1 Swap 4 | . 4 Drop . | . . Fire 68 | 6 62 Melee . | . . Ram . | . . Kick 22 | . 22 Crush . | . . Escape Stasis . | . . Rewire . | . . Trap . | . . Miscellaneous . | . . Route ------- -11/Scrapyard -10/Materials (discovered 1 exit: [*Min]) History --------- Turn | Location | Event 8 | -11/Scrapyard | Discovered new exit (range 15) 144 | -11/Scrapyard | Entered Materials 321 | -10/Materials | Build established: Mutant 384 | -10/Materials | Discovered new exit (range 8) 481 | -10/Materials | Core integrity fell below 50% 520 | -10/Materials | Lost 4 parts (1p2n1w) 619 | -10/Materials | Core integrity fell below 20% 653 | -10/Materials | Lost 4 parts (2n2w) 693 | -10/Materials | Destroyed by G-34 Mercenary with Small Laser Last Messages --------------- 00591_ Kicked G-47 Trooper out of the way. 00593_ Kicked G-47 Trooper. 00595_ Kicked G-47 Trooper out of the way. 00596_ Kicked G-47 Trooper. 00597_ Kicked G-47 Trooper out of the way. 00601_ Kicked G-47 Trooper. 00602_ Kicked G-47 Trooper out of the way. 00603_ Kicked G-47 Trooper. 00604_ Kicked G-47 Trooper out of the way. 00605_ Kicked G-47 Trooper. 00607_ Kicked G-47 Trooper out of the way. 00609_ Kicked G-47 Trooper. 00614_ G-47 Trooper knocked back. 00614_ Aluminum Leg destroyed. 00616_ Acquired 7 matter. 00616_ Acquired 3 matter. 00622_ Aluminum Leg destroyed. 00638_ R-06 Scavenger inserts Wheel into recycling unit. 00676_ K-01 Serf collects debris. 00683_ Lgt. Nuclear Core destroyed. Map ----- +----------------------------------------------------+ | ??????????????????????????????????????? | | ??????????????????????????????????????? | | ??????????????????????????????????????? | | ??????????????????????????????????????? | | ??????????????????????????????????????? | | ??????????????????????????????????????? | | ??????????????????????????????????????? | | ??????????????????????????????????????? | | ??????????????????????????????????????? | | ??????????????????????????????????????? | | ??????????????? ??????????????????? | | ??????????????? ?????????????????? | | ??????????????? ????? ????????? | | ??????????????? #????? #????????? | | ???????????????# #????? #????????? | | ???????????????# #????? #????????? | | ???????????????# +????? #????????? | | ???????????????# #????# #????????? | | ???????????????# #????# #????????? | | ######???####### #????# #????????? | | ##### # #????# #????????? | | ^ # #????# #????????? | | < ^ = #^^^^#????# #????????? | | ^ # #????# #????????? | | "# ^ # ###### #????????? | | |"| "# "Y" # @% #????????? | | """""# """ # % +????????? | | ###### % % #????????? | | %= #??####### | | ######### % #? # | | ????????# % g #? # | | ????????####+### # # | | ????????# !% ########### # !# | | ????????# """[ ##!! +k= + """ # | | ????????# """ ##!! # # """"" ?? | | ????????# """ ##! #= # """"" ?? | | ????????# ## " # #?"""""??? | | ????????# ## # #? """???? | | ????????######### """ # #??###???? | | ????????????????# """ # #????????? | | ????????????????# """ # #????????? | | ????????????????# # #????????? | | ????????????????####?##### #????????? | | ?????????????????????????# #####????? | | ?????????????????????????# #????? | | ?????????????????????????# #????? | | ?????????????????????????# #????? | | ?????????????????????????####+####????? | | ??????????????????????????# #????? | | ??????????????????????????# """ #????? | +----------------------------------------------------+ Best States ------------- Heat Dissipation 35 Energy Generation 14 Energy Capacity 160 Matter Stores 300 Matter Capacity 300 Sight Range 16 Terrain Scan Density 10 Evasion (%) 55 Recoil Reduction 2 Item Schematics ----------------- None Robot Schematics ------------------ None Fabricated ------------ Nothing Repaired ---------- Nothing Studied --------- None Alien Tech Used ----------------- None Achievements -------------- None Challenges ------------ None Game ------ Seed ImprovedChromionChip Manual? 0 Play Time 00:13:58 Cumulative 35.5 hours Start 2026.02.23 @ 21:53:03 End 2026.02.23 @ 22:01:32 Sessions 1 Manual Loads 0 Difficulty Rogue Special Mode None Game No. 31 Rogue 31 Adventurer 0 Explorer 0 Win Type - Total 2 Types 2/0/0/0/0/0/0/0/0/0 Lore% 31 Gallery% 31 Achievement% 30 Wizard Run 0 Options --------- Layout 0 ASCII 1 Keyboard 1 Movement Numpad Keybinds 0 Fullscreen 1 Font 24/Cog Map View 76x50 Zoom Use 0% Tactical HUD 1 Map Filters NONE Filters NONE Steam 1 RUN: e2dd912c-ae1e-45f7-bc62-b8d226a455b2